bitfinex/quotes_BTCUSD_20250711
["timestamp","ask_amount","ask_price","bid_price","bid_amount"]
[1752265114680,0.50675157,117930.0,117920.0,0.43150217]
[1752265121074,0.50675157,117930.0,117920.0,0.41590217]
[1752265121584,0.51178157,117930.0,117920.0,0.38343601]
[1752265123483,0.98645955,117930.0,117920.0,0.29595608]
[1752265123680,0.54348157,117930.0,117920.0,0.29595608]
[1752265124415,0.54348157,117930.0,117920.0,0.29495608]
[1752265124632,0.52778157,117930.0,117920.0,0.29495608]
[1752265124835,0.52778157,117930.0,117920.0,0.29700608]
[1752265125347,0.52778157,117930.0,117920.0,0.29600608]
[1752265125792,0.54348157,117930.0,117920.0,0.29395608]
[1752265126963,0.54290554,117930.0,117920.0,0.29395608]
[1752265127846,0.54290554,117930.0,117920.0,0.03271608]
[1752265128028,0.54290554,117930.0,117920.0,0.16323608]
[1752265128216,0.0311,117920.0,117910.0,0.02746987]
[1752265128420,0.9208239,117920.0,117910.0,0.15798987]
[1752265128635,0.9208239,117920.0,117910.0,0.14625289]
[1752265129440,0.03602,117920.0,117910.0,0.14625289]
[1752265129611,0.9208239,117920.0,117910.0,0.14837315]
[1752265129797,0.9208239,117920.0,117910.0,0.14625289]
[1752265132338,0.47842195,117920.0,117910.0,0.14625289]
[1752265135037,0.47842195,117920.0,117910.0,0.13452691]
[1752265135442,0.47842195,117920.0,117910.0,0.20324]
[1752265135676,0.47842195,117920.0,117910.0,0.23228425]
[1752265135898,0.47842195,117920.0,117910.0,0.22169772]
[1752265136843,0.47842195,117920.0,117910.0,0.35217772]
[1752265137899,0.46242195,117920.0,117910.0,0.35217772]
[1752265138491,0.9048239,117920.0,117910.0,0.35217772]
[1752265139664,0.9210239,117920.0,117910.0,0.35217772]
[1752265141972,0.9210239,117920.0,117910.0,0.22169772]
[1752265142101,0.9210239,117920.0,117910.0,0.20324]
[1752265142328,1.00645383,117920.0,117910.0,0.33372]
[1752265144440,1.00845383,117920.0,117910.0,0.33372]
[1752265147054,1.00945383,117920.0,117910.0,0.33372]
[1752265149418,1.36399468,117920.0,117910.0,0.20324]
[1752265149628,1.80639663,117920.0,117910.0,0.33368]
[1752265150590,1.80439663,117920.0,117910.0,0.33368]
[1752265151019,1.80739663,117920.0,117910.0,0.33368]
[1752265151787,1.80439663,117920.0,117910.0,0.33368]
[1752265152016,1.80439663,117920.0,117910.0,0.20324]
[1752265152207,1.83607913,117920.0,117910.0,0.33368]
[1752265152415,1.83507913,117920.0,117910.0,0.33368]
[1752265152755,1.83707913,117920.0,117910.0,0.33368]
[1752265153178,1.83507913,117920.0,117910.0,0.33368]
[1752265153459,0.04604085,117890.0,117880.0,0.002]
[1752265153635,0.04604085,117890.0,117880.0,0.13244]
[1752265153636,0.91584273,117890.0,117880.0,0.13244]
[1752265153840,0.91879273,117890.0,117880.0,0.13244]
[1752265154660,0.91979273,117890.0,117880.0,0.13244]
[1752265155328,0.92079273,117890.0,117880.0,0.13244]
[1752265155980,1.37653495,117890.0,117880.0,0.145684]
[1752265156903,1.37653495,117890.0,117880.0,0.13244]
[1752265176410,1.8189369,117890.0,117880.0,0.002]
[1752265176616,0.04654085,117870.0,117860.0,0.21852861]
[1752265176822,1.02101811,117870.0,117860.0,0.34907734]
[1752265177027,1.36183468,117870.0,117860.0,0.34907734]
[1752265177805,1.36383468,117870.0,117860.0,0.21867734]
[1752265178034,1.36383468,117870.0,117860.0,0.34907734]
[1752265178234,1.36383468,117870.0,117860.0,0.13732512]
[1752265178465,1.36383468,117870.0,117860.0,0.13054873]
[1752265178655,1.36183468,117870.0,117860.0,0.13054873]
[1752265179033,1.36583468,117870.0,117860.0,0.13054873]
[1752265179296,1.36093468,117870.0,117860.0,0.01305487]
[1752265179510,0.02964085,117850.0,117840.0,0.002]
[1752265179726,1.00411811,117850.0,117840.0,0.002]
[1752265179937,1.00199468,117850.0,117840.0,0.002]
[1752265180137,1.00493468,117850.0,117840.0,0.002]
[1752265180310,1.00493468,117850.0,117840.0,0.1324]
[1752265180525,1.00493468,117850.0,117840.0,0.14696507]
[1752265180930,1.00793468,117850.0,117840.0,0.14696507]
[1752265182334,0.12313078,117850.0,117840.0,0.14894507]
[1752265182538,0.88992733,117850.0,117840.0,0.14894507]
[1752265182763,0.8878039,117850.0,117840.0,0.14894507]
[1752265183719,0.8899239,117850.0,117840.0,0.14894507]
[1752265183923,0.8928639,117850.0,117840.0,0.14894507]
[1752265184124,0.9094639,117850.0,117840.0,0.14696507]
[1752265184349,0.8928639,117850.0,117840.0,0.14696507]
[1752265184680,0.8928639,117850.0,117840.0,0.14894507]
[1752265189238,0.8878039,117850.0,117840.0,0.14894507]
[1752265189738,0.8878039,117850.0,117840.0,0.02172507]
[1752265190025,0.44540195,117850.0,117840.0,0.16836]
[1752265190827,0.44340195,117850.0,117840.0,0.16836]
[1752265191033,0.44340195,117850.0,117840.0,0.37172]
[1752265191560,0.8858039,117850.0,117840.0,0.37172]
[1752265191789,0.8848039,117850.0,117840.0,0.37172]
[1752265192163,0.8858039,117850.0,117840.0,0.37172]
[1752265192536,0.8908439,117850.0,117840.0,0.33572]
[1752265192923,0.8908439,117850.0,117840.0,0.33769]
[1752265193563,0.8858039,117850.0,117840.0,0.33769]
[1752265193752,0.44340195,117850.0,117840.0,0.37167]
[1752265193938,0.8858039,117850.0,117840.0,0.37167]
[1752265197229,0.8858039,117850.0,117840.0,0.36849]
[1752265197921,0.8858039,117850.0,117840.0,0.35349]
[1752265199768,0.9074439,117850.0,117840.0,0.33572]
[1752265200999,1.02391468,117850.0,117840.0,0.33572]
[1752265201188,1.36391468,117850.0,117840.0,0.33572]
[1752265202136,1.36391468,117850.0,117840.0,0.20536]
[1752265202314,1.36391468,117850.0,117840.0,0.33572]
[1752265202595,1.36591468,117850.0,117840.0,0.33572]
[1752265202811,1.80831663,117850.0,117840.0,0.33572]
[1752265203224,1.36591468,117850.0,117840.0,0.33572]
[1752265205564,1.36491468,117850.0,117840.0,0.33572]
[1752265206306,1.36591468,117850.0,117840.0,0.33572]
[1752265214935,1.36591468,117850.0,117840.0,0.13236]
[1752265221814,1.80831663,117850.0,117840.0,0.13236]
[1752265222673,1.36591468,117850.0,117840.0,0.13236]
[1752265223042,1.80831663,117850.0,117840.0,0.13236]
[1752265223855,1.36591468,117850.0,117840.0,0.13236]
[1752265227909,1.80831663,117850.0,117840.0,0.13236]
[1752265228109,1.36591468,117850.0,117840.0,0.13236]
[1752265228357,1.80831663,117850.0,117840.0,0.13236]
[1752265229629,1.80831663,117850.0,117840.0,0.002]
[1752265229833,0.04484085,117830.0,117820.0,0.01565286]
[1752265230013,1.01934811,117830.0,117820.0,0.13272]
[1752265230181,1.00534468,117830.0,117820.0,0.14597367]
[1752265230390,0.99014468,117830.0,117820.0,0.14803367]
[1752265230625,0.99814142,117830.0,117820.0,0.13478]
[1752265230859,0.99814142,117830.0,117820.0,0.15008]
[1752265230860,0.55251947,117830.0,117820.0,0.15008]
[1752265231013,0.53582862,117830.0,117820.0,0.16610645]
[1752265231237,0.53582862,117830.0,117820.0,0.16920645]
[1752265231238,0.45039869,117830.0,117820.0,0.16920645]
[1752265231449,0.45239869,117830.0,117820.0,0.16920645]
[1752265231994,0.45339869,117830.0,117820.0,0.16920645]
[1752265242956,0.90117064,117830.0,117820.0,0.13490645]
[1752265243165,0.91697064,117830.0,117820.0,0.13284645]
[1752265243381,0.93287064,117830.0,117820.0,0.13284645]
[1752265243581,0.91697064,117830.0,117820.0,0.13284645]
[1752265243874,0.45876869,117830.0,117820.0,0.13490645]
[1752265254251,1.03394142,117830.0,117820.0,0.13284645]
[1752265256417,0.57533947,117830.0,117820.0,0.13284645]
[1752265258340,1.03374142,117830.0,117820.0,0.13284645]
[1752265258983,1.03374142,117830.0,117820.0,0.00252645]
[1752265259219,1.03374142,117830.0,117820.0,0.13284645]
[1752265259427,1.37374142,117830.0,117820.0,0.00252645]
[1752265259597,1.37374142,117830.0,117820.0,0.13284645]
[1752265260028,0.371,117820.0,117810.0,0.2034]
[1752265260166,1.8407829,117820.0,117800.0,0.00244]
[1752265260369,0.90095531,117810.0,117800.0,0.00244]
[1752265260568,1.34639383,117810.0,117800.0,0.13272]
[1752265261377,1.34739383,117810.0,117800.0,0.13272]
[1752265261616,1.34739383,117810.0,117800.0,0.146032]
[1752265262044,1.34739383,117810.0,117800.0,0.13272]
[1752265262660,1.34839383,117810.0,117800.0,0.13272]
[1752265263993,1.34839383,117810.0,117800.0,0.00244]
[1752265264163,1.34839383,117810.0,117800.0,0.13276]
[1752265268688,1.80533663,117810.0,117800.0,0.13276]
[1752265269022,1.83079363,117810.0,117800.0,0.13276]
[1752265270853,1.38839168,117810.0,117800.0,0.13276]
[1752265271202,1.83079363,117810.0,117800.0,0.13276]
[1752265272552,1.38839168,117810.0,117800.0,0.13276]
[1752265274697,1.38839168,117810.0,117800.0,0.146076]
[1752265275265,1.38839168,117810.0,117800.0,0.13276]
[1752265275832,1.83079363,117810.0,117800.0,0.13276]
[1752265276285,1.38839168,117810.0,117800.0,0.13276]
[1752265276522,1.83079363,117810.0,117800.0,0.13276]
[1752265278274,1.83079363,117810.0,117800.0,0.00244]
[1752265278524,1.83079363,117810.0,117800.0,0.13276]
[1752265280665,1.83079363,117810.0,117800.0,0.146076]
[1752265280878,1.38839168,117810.0,117800.0,0.015756]
[1752265281077,1.38839168,117810.0,117800.0,0.13276]
[1752265281507,1.83079363,117810.0,117800.0,0.13276]
[1752265282657,1.82979363,117810.0,117800.0,0.13276]
[1752265282806,1.82879363,117810.0,117800.0,0.13276]
[1752265283787,1.38639168,117810.0,117800.0,0.13276]
[1752265284001,1.82979363,117810.0,117800.0,0.13276]
[1752265285196,1.38739168,117810.0,117800.0,0.146076]
[1752265286255,1.38739168,117810.0,117800.0,0.13276]
[1752265296632,1.82979363,117810.0,117800.0,0.13276]
[1752265300828,2.82804024,117810.0,117800.0,0.13276]
[1752265307025,2.499081,117810.0,117800.0,0.13276]
[1752265316357,2.468081,117810.0,117800.0,0.13485]
[1752265317538,2.468081,117810.0,117800.0,0.150309]
[1752265320337,1.46467439,117810.0,117800.0,0.153449]
[1752265320574,1.45141747,117810.0,117800.0,0.185549]
[1752265320779,0.77738467,117810.0,117800.0,0.055229]
[1752265320984,0.75192767,117810.0,117800.0,0.16997]
[1752265321189,0.66649774,117810.0,117800.0,0.16997]
[1752265321603,0.33274887,117820.0,117810.0,0.0321]
[1752265321806,0.66549774,117820.0,117810.0,0.03419]
[1752265322088,0.66549774,117820.0,117810.0,0.03733]
[1752265322745,0.66749774,117820.0,117810.0,0.03733]
[1752265322958,0.44523874,117820.0,117810.0,0.05108029]
[1752265323183,0.44323874,117820.0,117810.0,0.05108029]
[1752265323396,0.44423874,117820.0,117810.0,0.05108029]
[1752265323842,0.44623874,117820.0,117810.0,0.05108029]
[1752265324291,0.44623874,117820.0,117810.0,0.05320235]
[1752265324504,0.44423874,117820.0,117810.0,0.05320235]
[1752265324935,0.44523874,117820.0,117810.0,0.05320235]
[1752265326774,0.44423874,117820.0,117810.0,0.05320235]
[1752265327150,0.44423874,117820.0,117810.0,0.05420235]
[1752265327755,0.44323874,117820.0,117810.0,0.05420235]
[1752265328142,0.44323874,117820.0,117810.0,0.05620235]
[1752265339954,0.90626833,117820.0,117810.0,0.03444029]
[1752265340155,1.00669826,117820.0,117810.0,0.003]
[1752265340455,1.02299826,117820.0,117810.0,0.13308]
[1752265343842,1.00845741,117820.0,117810.0,0.13308]
[1752265344042,1.02299826,117820.0,117810.0,0.13308]
[1752265346590,0.13652078,117820.0,117810.0,0.13308]
[1752265346793,0.56345952,117820.0,117810.0,0.016552]
[1752265347030,1.00669826,117820.0,117810.0,0.13308]
[1752265347455,0.99215741,117820.0,117810.0,0.13308]
[1752265347956,1.00669826,117820.0,117810.0,0.13208]
[1752265348887,1.00669826,117820.0,117810.0,0.13008]
[1752265349059,1.02199826,117820.0,117810.0,0.13108]
[1752265349226,1.02199826,117820.0,117810.0,0.144432]
[1752265349438,1.00669826,117820.0,117810.0,0.144432]
[1752265350400,0.10522078,117820.0,117810.0,0.146392]
[1752265350573,0.54320952,117820.0,117810.0,0.146392]
[1752265351548,0.54320952,117820.0,117810.0,0.162992]
[1752265352188,0.45777959,117820.0,117810.0,0.181602]
[1752265352441,0.44323874,117820.0,117810.0,0.181602]
[1752265354155,0.88647748,117820.0,117810.0,0.178592]
[1752265354359,0.88863748,117820.0,117810.0,0.146392]
[1752265354762,0.99169826,117820.0,117810.0,0.146352]
[1752265356608,0.10522078,117820.0,117810.0,0.146352]
[1752265356945,0.99169826,117820.0,117810.0,0.146352]
[1752265357894,0.98860826,117820.0,117810.0,0.146352]
[1752265358734,0.99169826,117820.0,117810.0,0.146352]
[1752265360217,0.54845952,117820.0,117810.0,0.146352]
[1752265360755,0.99169826,117820.0,117810.0,0.146352]
[1752265361550,1.02419826,117820.0,117810.0,0.144392]
[1752265361722,1.02419826,117820.0,117810.0,0.014352]
[1752265361932,1.36419826,117820.0,117810.0,0.001]
[1752265362103,1.38965226,117820.0,117810.0,0.13104]
[1752265363282,1.38965226,117820.0,117810.0,0.13004]
[1752265363639,1.39065226,117820.0,117810.0,0.13004]
[1752265363841,1.39065226,117820.0,117810.0,0.143288]
[1752265364256,1.39165226,117820.0,117810.0,0.143288]
[1752265373001,1.39165226,117820.0,117810.0,0.13004]
[1752265379725,0.50517478,117820.0,117810.0,0.13004]
[1752265379927,1.39165226,117820.0,117810.0,0.13004]
[1752265383143,0.87591867,117820.0,117810.0,0.13213]
[1752265383353,0.53066867,117820.0,117810.0,0.183933]
[1752265383545,0.87066867,117820.0,117810.0,0.183933]
[1752265383788,0.88520952,117820.0,117810.0,0.183933]
[1752265384380,0.54520952,117820.0,117810.0,0.183933]
[1752265388285,0.002,117820.0,117810.0,0.183933]
[1752265388484,0.44523874,117820.0,117810.0,0.183933]
[1752265388910,0.44423874,117820.0,117810.0,0.183933]
[1752265390364,0.44323874,117820.0,117810.0,0.183933]
[1752265390566,0.44323874,117820.0,117810.0,0.185933]
[1752265391415,0.44323874,117820.0,117810.0,0.186933]
[1752265393438,0.44323874,117820.0,117810.0,0.27840532]
[1752265398226,0.44323874,117820.0,117810.0,0.186933]
[1752265410883,0.44323874,117820.0,117810.0,0.183973]
[1752265411182,0.44323874,117820.0,117810.0,0.387413]
[1752265413840,0.44323874,117820.0,117810.0,0.355513]
[1752265418034,0.44323874,117820.0,117810.0,0.391343]
[1752265435524,0.42998874,117820.0,117810.0,0.391343]
[1752265437192,0.47738874,117840.0,117810.0,0.47677293]
[1752265437412,0.44323874,117820.0,117810.0,0.47677293]
[1752265438087,0.44323874,117820.0,117810.0,0.47577293]
[1752265438292,0.44323874,117820.0,117810.0,0.47377293]
[1752265438661,0.44323874,117820.0,117810.0,0.47577293]
[1752265438859,0.44323874,117820.0,117810.0,0.47477293]
[1752265439267,0.44323874,117820.0,117810.0,0.47677293]
[1752265440365,0.44323874,117820.0,117810.0,0.47577293]
[1752265440570,0.44323874,117820.0,117810.0,0.47677293]
[1752265441005,0.6647778,117820.0,117810.0,0.47677293]
[1752265441556,0.6647778,117820.0,117810.0,0.46047293]
[1752265442170,1.0331367,117820.0,117810.0,0.353423]
[1752265444943,0.47923349,117820.0,117810.0,0.353423]
[1752265463743,0.4747187,117820.0,117810.0,0.353423]
[1752265463878,0.4768687,117820.0,117810.0,0.353423]
[1752265464433,0.03360521,117820.0,117810.0,0.353423]
[1752265464616,0.4768687,117820.0,117810.0,0.353423]
[1752265464823,1.0309793,117820.0,117810.0,0.353423]
[1752265465394,1.03042409,117820.0,117810.0,0.353423]
[1752265471259,2.36779818,117820.0,117810.0,0.353423]
[1752265472044,2.02779818,117820.0,117810.0,0.353423]
[1752265476607,2.03082818,117820.0,117810.0,0.353423]
[1752265483694,1.03345409,117820.0,117810.0,0.353423]
[1752265485051,1.03042409,117820.0,117810.0,0.353423]
[1752265485463,1.03345409,117820.0,117810.0,0.353423]
[1752265486249,0.99737409,117820.0,117810.0,0.358623]
[1752265488282,0.66491606,117820.0,117810.0,0.358623]
[1752265488523,0.99737409,117820.0,117810.0,0.358623]
[1752265490866,1.03050409,117820.0,117810.0,0.355383]
[1752265492459,1.03050409,117820.0,117810.0,0.353423]
[1752265492862,1.03367409,117820.0,117810.0,0.353423]
[1752265507346,1.03367409,117820.0,117810.0,0.22283332]
[1752265507497,1.03367409,117820.0,117810.0,0.21123021]
[1752265507716,1.03367409,117820.0,117810.0,0.210648]
[1752265508563,2.45647811,117820.0,117810.0,0.46556]
[1752265508762,2.47101896,117820.0,117810.0,0.20644]
[1752265508981,0.3718,117810.0,117800.0,0.00244]
[1752265509229,0.79488796,117810.0,117800.0,0.00244]
[1752265509717,1.45980402,117810.0,117800.0,0.00244]
[1752265510232,1.45980402,117810.0,117800.0,0.132]
[1752265511032,1.45980402,117810.0,117800.0,0.133]
[1752265511603,0.33245803,117810.0,117800.0,0.17018]
[1752265511982,0.33245803,117820.0,117800.0,0.17018]
[1752265512195,0.33245803,117820.0,117810.0,0.03514]
[1752265512401,0.33245803,117840.0,117810.0,0.09283199]
[1752265512618,0.33250761,117840.0,117830.0,0.0319]
[1752265512856,0.44303524,117840.0,117830.0,0.2427417]
[1752265513065,0.44303524,117840.0,117830.0,0.24062]
[1752265513713,0.44403524,117840.0,117830.0,0.24062]
[1752265513927,0.8860209,117840.0,117830.0,0.24062]
[1752265515213,0.8860209,117840.0,117830.0,0.24162]
[1752265521017,0.8860209,117840.0,117830.0,0.22622]
[1752265523433,0.8860209,117840.0,117830.0,0.20972]
[1752265524505,0.8860209,117840.0,117830.0,0.20653858]
[1752265524699,0.8860209,117840.0,117830.0,0.20867858]
[1752265524902,0.8860209,117840.0,117830.0,0.20654]
[1752265525142,0.8860209,117840.0,117830.0,0.20535882]
[1752265525454,0.8911309,117840.0,117830.0,0.2034]
[1752265525679,0.9232309,117840.0,117830.0,0.2034]
[1752265525884,0.9232309,117840.0,117830.0,0.4624]
[1752265527724,0.8860209,117840.0,117830.0,0.48024]
[1752265527931,0.8860209,117840.0,117830.0,0.46454]
[1752265528526,0.90056175,117840.0,117830.0,0.46454]
[1752265529577,0.44303524,117840.0,117830.0,0.48257]
[1752265530005,0.8860209,117840.0,117830.0,0.47964]
[1752265530174,0.8860209,117840.0,117830.0,0.46454]
[1752265543805,0.90254175,117840.0,117830.0,0.46454]
[1752265544165,0.93817175,117840.0,117830.0,0.46454]
[1752265544573,0.93817175,117840.0,117830.0,0.2034]
[1752265544774,0.93817175,117840.0,117830.0,0.33288]
[1752265544988,1.02360168,117840.0,117830.0,0.33288]
[1752265546140,1.80658734,117840.0,117830.0,0.33288]
[1752265546803,1.36360168,117840.0,117830.0,0.33288]
[1752265547748,1.80658734,117840.0,117830.0,0.33288]
[1752265548083,1.36360168,117840.0,117830.0,0.33288]
[1752265548485,1.80658734,117840.0,117830.0,0.33288]
[1752265549624,1.80958734,117840.0,117830.0,0.33288]
[1752265549829,0.01454085,117810.0,117800.0,0.00244]
[1752265550003,0.92056644,117810.0,117800.0,0.00244]
[1752265550255,1.3635521,117810.0,117800.0,0.00244]
[1752265551116,1.3635521,117810.0,117800.0,0.13192]
[1752265555260,1.3635521,117810.0,117800.0,0.00244]
[1752265555586,1.3635521,117810.0,117800.0,0.13192]
[1752265556108,1.80653776,117810.0,117800.0,0.13192]
[1752265556588,1.3635521,117810.0,117800.0,0.13192]
[1752265556791,1.3890071,117810.0,117800.0,0.13192]
[1752265556996,1.3910071,117810.0,117800.0,0.13192]
[1752265558351,1.3920071,117810.0,117800.0,0.13192]
[1752265567912,1.3665521,117810.0,117800.0,0.13192]
[1752265568231,0.54595644,117810.0,117800.0,0.15245]
[1752265568431,1.3289421,117810.0,117800.0,0.15245]
[1752265569727,0.44598566,117810.0,117800.0,0.15245]
[1752265569928,0.88897132,117810.0,117800.0,0.14948]
[1752265570136,0.90351217,117810.0,117800.0,0.13398]
[1752265570532,1.0104521,117810.0,117800.0,0.13192]
[1752265570739,0.46052651,117810.0,117800.0,0.14998]
[1752265570915,0.90351217,117810.0,117800.0,0.15295]
[1752265572681,0.46052651,117810.0,117800.0,0.15295]
[1752265572860,0.90351217,117810.0,117800.0,0.15295]
[1752265573775,0.90351217,117810.0,117800.0,0.14998]
[1752265578980,1.24566217,117810.0,117800.0,0.13398]
[1752265579107,1.24861217,117810.0,117800.0,0.13398]
[1752265579520,0.90861217,117810.0,117800.0,0.13398]
[1752265580703,0.94001217,117810.0,117800.0,0.26144]
[1752265581907,0.92391217,117810.0,117800.0,0.26144]
[1752265582997,1.0254421,117810.0,117800.0,0.00244]
[1752265583204,1.0254421,117810.0,117800.0,0.13196]
[1752265585015,1.0254421,117810.0,117800.0,0.00244]
[1752265585228,1.0254421,117810.0,117800.0,0.13196]
[1752265589724,1.3654421,117810.0,117800.0,0.13196]
[1752265591593,1.3654421,117810.0,117800.0,0.00244]
[1752265591858,1.3654421,117810.0,117800.0,0.13196]
[1752265592031,0.01454085,117780.0,117760.0,0.24078]
[1752265592264,0.01454085,117780.0,117770.0,0.00213]
[1752265592468,0.01964085,117780.0,117770.0,0.00213]
[1752265593113,0.01669085,117780.0,117770.0,0.00213]
[1752265593294,0.01669085,117780.0,117770.0,0.13218551]
[1752265593429,0.45967651,117780.0,117770.0,0.13218551]
[1752265593627,0.45967651,117780.0,117770.0,0.13418551]
[1752265595516,0.45967651,117780.0,117770.0,0.13618551]
[1752265597013,0.01669085,117780.0,117770.0,0.13618551]
[1752265597208,0.01454085,117780.0,117770.0,0.17008551]
[1752265597454,0.45752651,117780.0,117770.0,0.17008551]
[1752265598249,0.45752651,117780.0,117770.0,0.13618551]
[1752265598651,1.3624421,117780.0,117770.0,0.00449551]
[1752265598820,1.3624421,117780.0,117770.0,0.13517551]
[1752265599021,1.3669381,117780.0,117770.0,0.13517551]
[1752265599814,1.3669381,117780.0,117770.0,0.13317551]
[1752265600239,1.3669381,117780.0,117770.0,0.13217551]
[1752265600468,1.3669381,117780.0,117770.0,0.13317551]
[1752265600887,1.3669381,117780.0,117770.0,0.00249551]
[1752265601088,1.3669381,117780.0,117770.0,0.13313551]
[1752265601696,1.3669381,117780.0,117770.0,0.13213551]
[1752265602137,1.3679381,117780.0,117770.0,0.13113551]
[1752265602292,1.3709381,117780.0,117770.0,0.13113551]
[1752265603364,1.3699381,117780.0,117770.0,0.13113551]
[1752265603567,1.3719381,117780.0,117770.0,0.13113551]
[1752265616155,1.3719381,117780.0,117770.0,0.00049551]
[1752265616367,1.3719381,117780.0,117770.0,0.13093551]
[1752265619743,0.38554085,117770.0,117760.0,0.0022]
[1752265619989,1.3620521,117770.0,117760.0,0.00224951]
[1752265620861,1.3620521,117770.0,117760.0,0.13280951]
[1752265621091,1.3495521,117770.0,117760.0,0.13280951]
[1752265621314,1.3340521,117770.0,117760.0,0.13479951]
[1752265623056,0.88595644,117770.0,117760.0,0.13803951]
[1752265623254,0.88595644,117770.0,117760.0,0.15443951]
[1752265623480,1.3289421,117770.0,117760.0,0.13479951]
[1752265623686,1.3340521,117770.0,117760.0,0.13479951]
[1752265626828,1.3340521,117770.0,117760.0,0.13483951]
[1752265627030,0.44297078,117770.0,117760.0,0.13483951]
[1752265627359,0.88595644,117770.0,117760.0,0.13483951]
[1752265627779,1.3289421,117770.0,117760.0,0.13483951]
[1752265628571,1.3309021,117770.0,117760.0,0.13483951]
[1752265628710,1.3340521,117770.0,117760.0,0.13483951]
[1752265629349,1.3495521,117770.0,117760.0,0.13483951]
[1752265631165,1.3340521,117770.0,117760.0,0.13483951]
[1752265631502,1.3309021,117770.0,117760.0,0.13483951]
[1752265631749,1.3340521,117770.0,117760.0,0.13483951]
[1752265633059,1.3501521,117770.0,117760.0,0.13483951]
[1752265635327,1.3656521,117770.0,117760.0,0.13284951]
[1752265656369,1.3289421,117770.0,117760.0,0.13499951]
[1752265656591,0.87141559,117770.0,117760.0,0.15049951]
[1752265656968,0.88595644,117770.0,117760.0,0.15364951]
[1752265657171,0.87269644,117770.0,117760.0,0.16934951]
[1752265660868,0.003,117770.0,117760.0,0.03878951]
[1752265661077,0.003,117770.0,117760.0,0.16958951]
[1752265661286,0.44598566,117770.0,117760.0,0.16958951]
[1752265661494,0.46052651,117770.0,117760.0,0.03878951]
[1752265661704,0.46052651,117770.0,117760.0,0.16958951]
[1752265662146,0.46052651,117770.0,117760.0,0.18284876]
[1752265674518,0.46052651,117770.0,117760.0,0.16958951]
[1752265675263,0.46052651,117770.0,117760.0,0.37310951]
[1752265675687,0.46052651,117770.0,117760.0,0.38636872]
[1752265677008,0.003,117770.0,117760.0,0.39413899]
[1752265677221,0.50117303,117790.0,117780.0,0.0153]
[1752265677429,0.50117303,117790.0,117780.0,0.28115]
[1752265677627,0.51571388,117790.0,117780.0,0.31420229]
[1752265677798,0.51571388,117790.0,117780.0,0.29615]
[1752265679381,0.51671388,117790.0,117780.0,0.29615]
[1752265679988,0.45852651,117790.0,117780.0,0.29615]
[1752265680255,0.01554085,117790.0,117780.0,0.28115]
[1752265680412,0.45852651,117790.0,117780.0,0.29625]
[1752265681913,0.001,117790.0,117780.0,0.29635]
[1752265682380,0.001,117790.0,117780.0,0.38177993]
[1752265682816,0.001,117790.0,117780.0,0.40776669]
[1752265683039,0.44498566,117810.0,117780.0,0.37726669]
[1752265683252,0.44298566,117800.0,117790.0,0.08755235]
[1752265683469,0.44298566,117800.0,117790.0,0.09268235]
[1752265683688,0.44498566,117810.0,117790.0,0.09268235]
[1752265683981,0.44498566,117810.0,117800.0,0.29545]
[1752265684185,0.44498566,117810.0,117800.0,0.29747]
[1752265685176,0.44548175,117810.0,117800.0,0.29747]
[1752265686187,0.44648175,117810.0,117800.0,0.29747]
[1752265686388,0.44848175,117810.0,117800.0,0.29747]
[1752265686626,0.44748175,117810.0,117800.0,0.29747]
[1752265687070,0.44948175,117810.0,117800.0,0.29747]
[1752265689028,0.44748175,117810.0,117800.0,0.29747]
[1752265689461,0.44848175,117810.0,117800.0,0.29747]
[1752265689813,0.44648175,117810.0,117800.0,0.29747]
[1752265690024,0.44748175,117810.0,117800.0,0.29747]
[1752265691117,0.44748175,117810.0,117800.0,0.28217]
[1752265691842,0.00449609,117810.0,117800.0,0.27906]
[1752265692156,0.44748175,117810.0,117800.0,0.26266]
[1752265694933,0.44948175,117810.0,117800.0,0.26266]
[1752265700668,0.43637175,117810.0,117800.0,0.26266]
[1752265704089,0.43948175,117810.0,117800.0,0.26266]
[1752265704298,0.45468175,117810.0,117800.0,0.26266]
[1752265704698,0.92730826,117810.0,117800.0,0.26008]
[1752265709265,0.92730826,117810.0,117780.0,0.034]
[1752265709463,0.48882651,117790.0,117780.0,0.002]
[1752265709661,0.49085651,117790.0,117780.0,0.13192]
[1752265709905,0.49396651,117790.0,117780.0,0.13192]
[1752265711167,0.49396651,117790.0,117780.0,0.13196]
[1752265711369,0.49396651,117790.0,117780.0,0.13396]
[1752265711999,0.49396651,117790.0,117780.0,0.13596]
[1752265712552,0.49396651,117790.0,117780.0,0.13396]
[1752265712993,0.49396651,117790.0,117780.0,0.13596]
[1752265714733,0.50174274,117790.0,117780.0,0.13596]
[1752265718009,0.49396651,117790.0,117780.0,0.13596]
[1752265718998,0.50257361,117790.0,117780.0,0.13596]
[1752265721552,1.43943547,117790.0,117780.0,0.006]
[1752265721796,1.43943547,117790.0,117780.0,0.1358]
[1752265721999,0.99644981,117790.0,117780.0,0.1358]
[1752265722358,0.99644981,117790.0,117780.0,0.1338]
[1752265722702,0.99644981,117790.0,117780.0,0.1318]
[1752265723665,0.99644981,117790.0,117780.0,0.1328]
[1752265724400,0.99644981,117790.0,117780.0,0.1318]
[1752265724606,0.99744981,117790.0,117780.0,0.1318]
[1752265724805,0.99944981,117790.0,117780.0,0.1318]
[1752265726703,0.93100354,117790.0,117780.0,0.1318]
[1752265735322,1.3739892,117790.0,117780.0,0.1318]
[1752265735562,0.93100354,117790.0,117780.0,0.1318]
[1752265738979,1.48627862,117790.0,117780.0,0.1318]
[1752265741676,1.4862563,117790.0,117780.0,0.1318]
[1752265757754,0.45671788,117790.0,117780.0,0.00408]
[1752265757959,0.004,117790.0,117780.0,0.16867]
[1752265758210,0.33674614,117790.0,117780.0,0.16867]
[1752265758415,0.004,117790.0,117780.0,0.25409993]
[1752265758953,0.33474614,117790.0,117780.0,0.25409993]
[1752265759162,0.002,117790.0,117780.0,0.25409993]
[1752265759367,0.33474614,117790.0,117780.0,0.25409993]
[1752265760754,0.33274614,117790.0,117780.0,0.25389993]
[1752265760960,0.44332798,117790.0,117780.0,0.22239993]
[1752265761390,0.44332798,117790.0,117780.0,0.25389993]
[1752265761807,0.44332798,117790.0,117780.0,0.25489993]
[1752265762478,0.44332798,117790.0,117780.0,0.28094749]
[1752265762672,0.44332798,117790.0,117780.0,0.28294749]
[1752265771839,0.44332798,117790.0,117780.0,0.15519]
[1752265772264,0.44332798,117790.0,117780.0,0.17029]
[1752265774231,0.08725627,117810.0,117780.0,0.25571993]
[1752265774458,0.44332798,117790.0,117780.0,0.22226993]